[Event "ITT 1st Parada Jamundi 2022"]
[Site "Jamundi Valle"]
[Date "2022.12.07"]
[Round "2.1"]
[White "Rios, Cristhian Camilo"]
[Black "Henriquez Villagra, Cristobal"]
[Result "0-1"]
[ECO "D46"]
[WhiteElo "2456"]
[BlackElo "2587"]
[Annotator "TA"]
[PlyCount "194"]
[EventDate "2022.12.05"]
[EventType "swiss"]
[EventCountry "COL"]
[SourceTitle "playchess.com"]
[Source "ChessBase"]
[SourceQuality "1"]
[TimeControl "5400+30"]

{[%evp 22,194,10,0,0,-13,-13,-117,-7,-28,-10,-12,-7,-16,-8,-10,-3,-19,-9,-33,-25,-42,-43,-62,-62,-56,-43,-42,-59,-55,-48,-55,-60,-151,-60,-66,-61,-59,-35,-129,-31,-35,-26,-31,-44,-38,-20,-20,-8,-31,-7,-40,-43,-35,-40,-150,-141,-236,-220,-245,-172,-187,-187,-236,-236,-236,-236,-236,-242,-242,-175,-191,-174,-671,-720,-541,-339,-295,-260,-362,-237,-369,-343,-362,-364,-359,-340,-319,-304,-266,-267,-267,-202,-194,-194,-400,-381,-336,-383,-351,-329,-399,-378,-385,-376,-360,-354,-381,-365,-995,-862,-1036,-1014,-975,-827,-672,-600,-1023,-1041,-533,-434,-29954,-29956,-29961,-29961,-29967,-29968,-29968,-29969,-29967,-29968,-29968,-29969,-29970,-29970,-29970,-29969,-29978,-29970,-29970,-29970,-29968,-29969,-29969,-29970,-29970,-29969,-29968,-29969,-29970,-29971,-29971,-12495,-29978,-29976,-29978,-29979,-29983,-29984,-29986,-29982,-29982,-29983,-29983,-29983,-29983,-29982,-29982,-29964,-29983,-29984,-29984,-29985,-29985,-29983]} 1. d4 {[%emt 0:00:38]} d5 {[%emt 0:00:10]} 2. c4 {[%emt 0:00:16]} e6 {[%emt 0:00:04]} 3. Nf3 {[%emt 0:01:21]} c6 {[%emt 0:00:08]} 4. Nc3 {[%emt 0:00:53]} Nf6 {[%emt 0:00:22]} 5. e3 {[%emt 0:00:56]} Nbd7 {[%emt 0:00:06]} 6. Qc2 {[%emt 0:00:15]} Bd6 {[%emt 0:01:10]} 7. Bd3 {[%emt 0:00:47]} dxc4 {[%emt 0:03:09]} 8. Bxc4 {[%emt 0:02:37]} O-O {[%emt 0:03:14]} 9. O-O {[%emt 0:03:04]} Qe7 {[%emt 0:01:27]} 10. h3 {[%emt 0:10:12]} a5 {[%emt 0:09:03]} 11. a4 {[%emt 0:04:54]} e5 {[%emt 0:05:38]} 12. Bb3 {[%emt 0:00:31]} Bb8 {[%emt 0:01:28]} 13. Re1 {[%emt 0:04:31]} h6 {[%emt 0:09:13]} 14. Nh4 {[%emt 0:05:51]} (14. dxe5 $11 {remains equal.} Nxe5 15. Nxe5 Bxe5 16. Bd2) 14... Re8 {[%emt 0:02:31]} (14... exd4 $17 15. Ng6 Qd6 16. exd4 Qh2+ 17. Kf1 Qh1+ 18. Ke2 Qxg2 19. Nxf8 Nxf8 20. Bxh6 Qxh3) 15. Bd2 {[%emt 0:11:02]} (15. Nf5 $5 {[%cal Rf5e7]} Qf8 16. Ne2 $11) 15... Nf8 {[%emt 0:11:22]} (15... e4 $5 {[%cal Rd7f8]} 16. Nf5 Qd8 $11) 16. Nf5 {[%emt 0:10:18]} Qc7 {[%emt 0:01:29]} 17. Ng3 {[%emt 0:01:21]} exd4 {[%emt 0:05:44]} 18. exd4 {[%emt 0:00:19]} Be6 {[%emt 0:00:07]} 19. Bxe6 {[%emt 0:07:05]} Rxe6 {[%emt 0:00:31]} 20. Re3 {[%emt 0:09:48]} Qd6 {[%emt 0:03:44]} 21. Qd3 {[%emt 0:01:50]} Bc7 {[%emt 0:00:37]} 22. Rd1 {[%emt 0:07:19]} Rd8 {[%emt 0:03:34]} 23. Bc1 {[%emt 0:00:46]} Ng6 {[%emt 0:07:47]} 24. Rxe6 {[%emt 0:00:42]} Qxe6 {[%emt 0:00:05]} 25. Nf5 {[%emt 0:04:39]} Ne7 {[%emt 0:00:37]} 26. Nxe7+ {[%emt 0:01:28]} Qxe7 {[%emt 0:00:05]} 27. Qf3 {[%emt 0:01:18] [#]} (27. Qe2 $15 Qb4 28. Be3) 27... Bb6 {[%emt 0:05:02]} (27... Rxd4 $1 $17 {[%mdl 512]} 28. Be3 Rb4) 28. Be3 {[%emt 0:01:11]} Nd5 {[%emt 0:00:18]} 29. Rd3 {[%emt 0:03:55]} Bc7 {[%emt 0:05:18]} 30. Bd2 {[%emt 0:03:51]} (30. g3 $15) 30... Rd6 {[%emt 0:08:59]} ({Better is} 30... Nb4 $1 $17 {[%cal Rb4d3]} 31. Re3 Qd6) 31. Nxd5 $15 {[%emt 0:00:17]} Rxd5 {[%emt 0:00:04]} 32. Bc3 {[%emt 0:00:50]} Qd7 {[%emt 0:04:45]} 33. Re3 {[%emt 0:00:11]} f6 {[%emt 0:02:50]} 34. Re4 {[%emt 0:01:09]} Kf7 {[%emt 0:00:17]} 35. Qe2 {[%emt 0:00:32]} f5 {[%emt 0:01:39]} 36. Re3 {[%emt 0:00:19]} Bf4 {[%emt 0:00:06]} 37. Rf3 {[%emt 0:00:23]} Bg5 {[%emt 0:00:03]} 38. Qc4 {[%emt 0:01:07]} (38. g4 $15) 38... b5 $1 $17 {[%emt 0:00:40]} 39. Qd3 {[%emt 0:00:30]} (39. axb5 $17 cxb5 40. Qe2) 39... b4 $19 {[%emt 0:00:11]} (39... bxa4 40. Qc4 $11) 40. Bd2 {[%emt 0:00:19]} Bf6 {[%emt 0:01:16]} 41. Be3 {[%emt 0:00:22]} c5 {[%emt 0:00:31]} (41... Bxd4 42. Bxd4 Rxd4 43. Qa6 $17 (43. Qxf5+ Qxf5 44. Rxf5+ Ke6 $17) (43. Rxf5+ $2 Kg6 $19)) 42. b3 {[%emt 0:00:06]} (42. Qb3 $142 cxd4 43. Bd2) 42... cxd4 $19 {[%emt 0:00:18]} (42... Bxd4 43. Qc4 $17) 43. Bd2 {[%emt 0:00:07]} Rc5 {[%emt 0:00:48]} 44. Rf4 {[%emt 0:00:45]} Qe6 {[%emt 0:00:57]} 45. g4 {[%emt 0:00:25]} g6 {[%emt 0:01:59]} 46. gxf5 {[%emt 0:00:21]} gxf5 {[%emt 0:00:02]} 47. Rf3 $2 {[%emt 0:00:17]} (47. h4) 47... Qe4 $19 {[%emt 0:00:20]} 48. Kf1 {[%emt 0:00:18]} Qxd3+ {[%emt 0:00:48]} 49. Rxd3 {[%emt 0:00:05]} h5 {[%emt 0:00:08]} 50. Ke2 {[%emt 0:00:23]} h4 {[%emt 0:00:14]} 51. Rf3 {[%emt 0:02:57]} (51. Bf4 $142) 51... Ke6 $19 {[%emt 0:00:12]} 52. Kd3 {[%emt 0:00:09]} Ke5 {[%emt 0:02:01]} 53. Bf4+ {[%emt 0:00:28]} Kd5 $1 {[%emt 0:00:04]} 54. Bd2 {[%emt 0:00:07]} Ke6 {[%emt 0:00:02]} 55. Rf4 {[%emt 0:00:16]} Rc8 {[%emt 0:00:33]} 56. Rf3 {[%emt 0:00:09]} Be5 {[%emt 0:00:40]} 57. Bg5 {[%emt 0:00:31]} Kd5 {[%emt 0:02:05]} 58. Rxf5 $2 {[%emt 0:01:15]} (58. Bd2 f4 59. Ke2) 58... Rc3+ $19 {[%emt 0:00:09]} 59. Ke2 {[%emt 0:00:53]} Ke4 {[%emt 0:00:23]} (59... Rxh3 60. f4 d3+ 61. Kd2 $11) 60. Rf8 {[%emt 0:00:17]} d3+ {[%emt 0:00:55]} (60... Rxh3 61. f3+ Kd5 62. Ra8 $17) 61. Kd2 {[%emt 0:00:11]} Rxb3 {[%emt 0:00:58]} 62. f3+ {[%emt 0:00:08] [#]} Kd5 $1 {[%emt 0:00:20]} 63. Rd8+ {[%emt 0:00:11]} Ke6 {[%emt 0:00:44]} 64. Rxd3 {[%emt 0:00:32]} Ra3 {[%emt 0:00:12]} 65. Bxh4 $2 {[%emt 0:01:57]} (65. Rd8) 65... b3 $19 {[%emt 0:00:42]} 66. Re3 {[%emt 0:00:33]} b2 {[%emt 0:00:10]} (66... Rxa4 $2 67. Bg3 Rd4+ 68. Ke2 $19) 67. Re1 {[%emt 0:00:05]} Kd5 {[%emt 0:01:23]} (67... Rxf3 68. Kc2 $15) 68. Kc2 {[%emt 0:00:39]} Rxa4 {[%emt 0:00:04]} (68... Rxf3 69. Bg5 $15) 69. f4 {[%emt 0:00:38]} Rc4+ {[%emt 0:01:27]} ({Not} 69... Rxf4 70. Rxe5+ Kxe5 71. Bg3 $11) (69... Bxf4 70. Bf6 $11) 70. Kb1 {[%emt 0:00:19]} Bxf4 {[%emt 0:00:03]} ({Stronger than} 70... Rxf4 71. Rxe5+ Kxe5 72. Bg3 $11) 71. Kxb2 {[%emt 0:00:47]} (71. Rd1+ $19 Ke6 72. Re1+ Be5 73. Bd8) 71... Be5+ {[%emt 0:00:10]} 72. Rxe5+ {[%emt 0:00:05]} Kxe5 {[%emt 0:00:03]} 73. Be1 {[%emt 0:00:55] [#]} a4 $1 {[%emt 0:00:51]} 74. Ka3 {[%emt 0:00:09]} Kd5 {[%emt 0:00:29]} 75. Bb4 {[%emt 0:00:21]} Rc8 {[%emt 0:00:18]} 76. h4 {[%emt 0:00:46]} Kc4 {[%emt 0:00:03]} 77. Be7 {[%emt 0:00:06]} Kb5 {[%emt 0:00:07]} 78. Bg5 {[%emt 0:00:20]} Re8 {[%emt 0:00:10]} 79. Bf4 {[%emt 0:00:51]} Rf8 {[%emt 0:00:38]} 80. Bd6 {[%emt 0:00:27]} Rf3+ {[%emt 0:00:09]} 81. Ka2 {[%emt 0:00:11]} Re3 {[%emt 0:00:21]} 82. Bf8 {[%emt 0:01:13]} Re8 {[%emt 0:01:49]} 83. Bd6 {[%emt 0:00:17]} Re6 {[%emt 0:00:03]} 84. Bf8 {[%emt 0:00:07]} Rf6 {[%emt 0:00:04]} 85. Be7 {[%emt 0:00:18]} Rf7 {[%emt 0:00:06]} 86. Bd6 {[%emt 0:00:19]} Rh7 {[%emt 0:00:03]} 87. Bg3 {[%emt 0:00:13]} Rh6 {[%emt 0:00:03]} 88. Kb2 {[%emt 0:01:33]} Rf6 {[%emt 0:00:54]} 89. Ka2 {[%emt 0:00:51]} a3 {[%emt 0:00:53]} 90. Be5 {[%emt 0:00:14]} Rf3 {[%emt 0:00:05]} 91. h5 {[%emt 0:00:07]} Ka4 {[%emt 0:00:07]} 92. h6 {[%emt 0:00:15]} Rf2+ {[%emt 0:00:24]} 93. Kb1 {[%emt 0:00:11]} Kb3 {[%emt 0:00:06]} 94. Kc1 {[%emt 0:00:08]} Rf1+ {[%emt 0:00:04]} 95. Kd2 {[%emt 0:00:08]} Rh1 {[%emt 0:00:03]} 96. Bg7 {[%emt 0:00:17]} a2 {[%emt 0:00:03]} 97. Ke3 {[%emt 0:00:06]} Rxh6 {[%emt 0:00:09]} ({Worse is} 97... a1=B 98. Bxa1 Rxh6 99. Bg7 $11) 0-1

[Event "ITT 1st Parada Jamundi 2022"]
[Site "Jamundi Valle"]
[Date "2022.12.07"]
[Round "2.2"]
[White "Paredes Lagos, Anthony Javier"]
[Black "Cruz, Cristhian"]
[Result "0-1"]
[ECO "D02"]
[WhiteElo "2230"]
[BlackElo "2552"]
[Annotator "TA"]
[PlyCount "88"]
[EventDate "2022.12.05"]
[EventType "swiss"]
[EventCountry "COL"]
[SourceTitle "playchess.com"]
[Source "ChessBase"]
[SourceQuality "1"]
[TimeControl "5400+30"]

{[%evp 9,88,11,12,0,8,-5,-2,0,-2,-16,0,-4,-10,-7,-10,-49,-26,-22,-30,-47,-15,-11,0,0,0,-12,-23,-10,-18,-22,-26,-62,-63,-76,-13,-15,-10,-276,-274,-261,-262,-266,-273,-268,-262,-266,-268,-307,-298,-283,-296,-293,-281,-314,-313,-363,-356,-425,-419,-439,-439,-407,-410,-410,-408,-459,-458,-535,-525,-467,-436,-557,-546,-658,-644,-692,-687,-656,-654,-1444,-1410]} 1. d4 {[%emt 0:12:48]} d5 {[%emt 0:08:20]} 2. Bf4 {[%emt 0:00:29]} Nf6 {[%emt 0:02:11]} 3. e3 {[%emt 0:00:17]} e6 {[%emt 0:00:16]} 4. Nf3 {[%emt 0:00:28]} Bd6 {[%emt 0:00:07]} 5. Nbd2 {[%emt 0:00:17]} O-O {[%emt 0:02:05]} 6. c3 {[%emt 0:07:20] D02: 1 d4 d5 2 Nf3 sidelines, including 2...Nf6 3 g3 and 2...Nf6 3 Bf4.} c5 {[%emt 0:02:00]} 7. Bxd6 {[%emt 0:01:20]} Qxd6 {[%emt 0:00:10]} 8. Ne5 {[%emt 0:00:30] The position is equal.} Nfd7 {[%emt 0:09:16]} 9. f4 {[%emt 0:09:23]} f6 {[%emt 0:00:19]} 10. Nef3 {[%emt 0:05:02]} cxd4 {[%emt 0:06:08] [#]} 11. Nxd4 $146 {[%emt 0:01:26]} ({Predecessor:} 11. cxd4 e5 12. fxe5 fxe5 13. Qb3 Kh8 14. dxe5 Nxe5 15. Nxe5 Qxe5 16. Nf3 Qe7 17. Be2 {½-½ (32) Krzyzanowski,M (2535)-Haring,F (2473) Czech Republic 2022}) 11... Nc6 {[%emt 0:00:55]} 12. N2f3 {[%emt 0:07:51]} (12. Bd3 {with more complications.} Nc5 13. Bc2 e5 14. Qh5) 12... Nxd4 {[%emt 0:17:12]} (12... Nb6 $5 {[%cal Re6e5]}) 13. Qxd4 {[%emt 0:02:09]} e5 {[%emt 0:07:45]} 14. Qb4 {[%emt 0:00:04]} Qxb4 {[%emt 0:00:41]} (14... Nc5 $5 {[%cal Rc8f5]}) 15. cxb4 {[%emt 0:00:04]} exf4 {[%emt 0:00:44]} 16. exf4 {[%emt 0:00:12]} Re8+ {[%emt 0:00:26]} 17. Kd2 {[%emt 0:01:03]} Re4 {[%emt 0:06:23][%csl LRb4,LRf4]} 18. a3 {[%emt 0:00:09]} Rxf4 {[%emt 0:02:06]} 19. Re1 {[%emt 0:02:30] Inhibits Ne5.} Nb6 {[%emt 0:07:31]} 20. Re7 {[%emt 0:02:37]} Kf8 {[%emt 0:11:56]} 21. Rc7 {[%emt 0:01:33]} Re4 {[%emt 0:03:42]} ({Black should try} 21... Bf5 $17) 22. Bd3 $11 {[%emt 0:00:23]} Re7 $36 {[%emt 0:00:01][%mdl 2048] Black has the initiative.} 23. Rhc1 {[%emt 0:01:41][%mdl 8192] [#] Now White is beyond hope.} (23. Rc5 $11 {and White is okay.}) 23... Nc4+ $1 $19 {[%emt 0:00:18]} 24. R1xc4 {[%emt 0:01:13]} dxc4 {[%emt 0:00:02]} 25. Rxc4 {[%emt 0:00:58]} Be6 {[%emt 0:00:06]} 26. Rd4 {[%emt 0:00:05]} g6 {[%emt 0:02:41]} 27. Rd6 {[%emt 0:00:40]} Kf7 {[%emt 0:00:34]} 28. Be4 {[%emt 0:02:19]} Rb8 {[%emt 0:00:22]} 29. Nd4 {[%emt 0:00:57]} Rd7 {[%emt 0:00:15]} 30. Rxd7+ {[%emt 0:01:30]} Bxd7 {[%emt 0:00:02][%mdl 4096] Endgame KRB-KBN} 31. b5 {[%emt 0:00:17]} Ke7 {[%emt 0:00:27]} 32. b3 {[%emt 0:02:55]} Kd6 {[%emt 0:01:03]} 33. a4 {[%emt 0:00:36]} Ke5 {[%emt 0:02:51][%csl LRd4,LRe4]} 34. Ke3 {[%emt 0:00:57]} f5 {[%emt 0:00:58]} 35. Nf3+ {[%emt 0:00:13]} Kf6 {[%emt 0:00:49]} 36. Bd3 {[%emt 0:01:05]} Be6 {[%emt 0:00:19]} 37. b4 {[%emt 0:00:34]} Bd5 {[%emt 0:00:15] Black is clearly winning.} 38. Ne1 {[%emt 0:00:47]} Re8+ {[%emt 0:00:18]} 39. Kd2 {[%emt 0:00:15]} Be4 {[%emt 0:00:12]} 40. a5 {[%emt 0:01:02]} Rd8 {[%emt 0:00:30]} 41. Kc3 {[%emt 0:00:11]} Ke5 {[%emt 0:00:38]} 42. g3 {[%emt 0:00:08]} Rc8+ {[%emt 0:00:34]} 43. Kd2 {[%emt 0:00:02]} Kd4 {[%emt 0:00:21]} 44. Nc2+ {[%emt 0:00:09] [#]} Rxc2+ $1 {[%emt 0:00:19][%mdl 512] Weighted Error Value: White=0.48/Black=0.05 (flawless)} 0-1

[Event "ITT 1st Parada Jamundi 2022"]
[Site "Jamundi Valle"]
[Date "2022.12.07"]
[Round "2.3"]
[White "Cardoso Cardoso, Jose Gabriel"]
[Black "Cori Quispe, Kevin Joel"]
[Result "1/2-1/2"]
[ECO "A31"]
[WhiteElo "2483"]
[BlackElo "2469"]
[Annotator "TA"]
[PlyCount "66"]
[EventDate "2022.12.05"]
[EventType "swiss"]
[EventCountry "COL"]
[SourceTitle "playchess.com"]
[Source "ChessBase"]
[SourceQuality "1"]
[TimeControl "5400+30"]

{[%evp 30,66,42,36,60,47,84,42,46,48,57,68,56,36,37,36,37,0,-8,0,-3,-99,-76,-99,-103,-233,-166,-245,-35,-49,-45,-155,0,-32,-28,-126,0,0,0]} 1. e4 {[%emt 0:00:03]} c5 {[%emt 0:20:33]} 2. Nf3 {[%emt 0:00:15]} e6 {[%emt 0:00:30]} 3. d4 {[%emt 0:00:11]} cxd4 {[%emt 0:00:06]} 4. Nxd4 {[%emt 0:00:04]} a6 {[%emt 0:00:14]} 5. c4 {[%emt 0:00:11]} Nf6 {[%emt 0:00:09]} 6. Nc3 {[%emt 0:00:06]} Qc7 {[%emt 0:01:08]} 7. a3 {[%emt 0:00:07]} b6 {[%emt 0:00:57]} 8. Be3 {[%emt 0:00:07]} Bb7 {[%emt 0:00:14]} 9. f3 {[%emt 0:00:07]} Be7 {[%emt 0:02:20]} 10. Rc1 {[%emt 0:00:08]} O-O {[%emt 0:01:52]} 11. Be2 {[%emt 0:00:04]} d6 {[%emt 0:03:43]} 12. Qd2 {[%emt 0:00:05]} Re8 {[%emt 0:04:54]} 13. O-O {[%emt 0:00:39]} Nbd7 {[%emt 0:00:24]} 14. b4 {[%emt 0:00:07]} Rac8 {[%emt 0:00:20]} 15. Rfd1 {[%emt 0:00:07]} Qb8 {[%emt 0:00:57]} 16. Nb3 {[%emt 0:00:09] 16.Bf1 is the modern continuation.} Bf8 {[%emt 0:02:20][%cal Od6d5] A31: Symmetrical English: 2 Nf3 Nf6 3 d4.} 17. Bf2 {[%emt 0:04:20]} Ba8 {[%emt 0:03:33]} 18. Bf1 {[%emt 0:15:03] [#] White is more active.} h6 $146 {[%emt 0:00:43] White is slightly better.} ({Predecessor:} 18... Rcd8 19. Qd4 h6 20. Bg3 Ne5 21. Na4 Nfd7 22. Bf2 Nc6 23. Qc3 b5 24. Nb2 Nce5 {0-1 (63) Bastians,F (2146)-Podzielny,K (2458) Gelsenkirchen 2006}) 19. Qd4 {[%emt 0:02:46]} Bc6 {[%emt 0:05:50]} 20. Qe3 {[%emt 0:08:38]} Be7 {[%emt 0:02:05][%cal Bf8e7,Be7d8,Bd8c7][%mdl 32]} 21. Nd4 {[%emt 0:05:15]} Ba8 {[%emt 0:00:22]} 22. Na4 {[%emt 0:01:42]} Bd8 {[%emt 0:02:11]} 23. Nb3 {[%emt 0:09:11]} Bc7 {[%emt 0:02:15] Threatening ...d5.} 24. g3 {[%emt 0:01:30]} d5 {[%emt 0:05:43]} 25. cxd5 {[%emt 0:14:42]} (25. c5 $11 b5 26. Nc3) 25... exd5 $17 {[%emt 0:00:07]} 26. Bxa6 {[%emt 0:00:36]} Rcd8 {[%emt 0:01:07][%cal Rd5e4]} 27. Bb5 {[%emt 0:20:17]} (27. Nc3 $17 {is a better defense.}) 27... dxe4 $19 {[%emt 0:03:21]} 28. f4 {[%emt 0:00:06]} (28. fxe4 {was worth a try.} Rxe4 29. Qc3) 28... Re7 $2 {[%emt 0:21:55]} (28... Ng4 $19 29. Qe2 Nxf2 30. Qxf2 (30. Rxd7 Rxd7 31. Bxd7 Re7 $19) 30... e3) 29. Nd4 {[%emt 0:02:59]} Ng4 $1 {[%emt 0:09:36]} 30. Qe2 {[%emt 0:00:27]} (30. Qc3 $1 $15 Ndf6 31. Be1 (31. Nf5 Rxd1+ 32. Rxd1 Re6 $11)) 30... Nxf2 $2 {[%emt 0:00:23]} (30... e3 $1 $17 {[%cal Re3f2]} 31. Be1 (31. Qxg4 $2 {too greedy.} exf2+ 32. Kf1 Nf6 $19) 31... Ndf6) 31. Qxf2 {[%emt 0:03:24] aiming for Nf5.} e3 {[%emt 0:01:56]} 32. Qe2 {[%emt 0:00:04] [#]} (32. Qe1 $1 $11 {remains equal.}) 32... Nf6 {[%emt 0:00:23]} (32... Bxf4 $1 $17 {[%mdl 512]} 33. gxf4 (33. Nf5 $2 Re5 $19) (33. Nc6 Bxc6) 33... Qxf4) 33. Nc6 $1 $11 {[%emt 0:02:59]} Bxc6 {[%emt 0:00:10] Weighted Error Value: White=0.38/Black=0.48} 1/2-1/2

[Event "ITT 1st Parada Jamundi 2022"]
[Site "Jamundi Valle"]
[Date "2022.12.07"]
[Round "2.4"]
[White "Mirzoev, Azer"]
[Black "Aguero Jimenez, Luis Lazaro"]
[Result "1-0"]
[ECO "D30"]
[WhiteElo "2462"]
[BlackElo "2465"]
[Annotator "TA"]
[PlyCount "115"]
[EventDate "2022.12.05"]
[EventType "swiss"]
[EventCountry "COL"]
[SourceTitle "playchess.com"]
[Source "ChessBase"]
[SourceQuality "1"]
[TimeControl "5400+30"]

{[%evp 9,115,16,17,18,19,9,19,7,7,9,74,35,54,44,48,44,59,39,41,42,47,17,20,22,63,48,65,47,41,45,54,56,54,0,53,39,35,25,42,41,41,8,9,0,20,22,22,9,24,0,0,0,0,0,10,15,25,14,32,18,13,0,0,0,0,0,0,0,0,0,608,606,589,589,555,541,482,460,1610,621,1739,1453,1844,1247,2640,1521,12826,2410,12837,12838,12837,12832,12832,12832,12832,12833,12833,12834,12839,12835,12840,12840,12842,12843,12847,12847,12847,12848]} 1. d4 {[%emt 0:20:20]} d5 {[%emt 0:00:14]} 2. Nf3 {[%emt 0:00:05]} Nf6 {[%emt 0:00:04]} 3. c4 {[%emt 0:00:15]} e6 {[%emt 0:00:07]} 4. e3 {[%emt 0:00:17]} a6 {[%emt 0:01:22]} 5. b3 {[%emt 0:00:14]} c5 {[%emt 0:00:29]} 6. Bb2 {[%emt 0:00:18] D30: Queen's Gambit Declined: Systems without Nc3.} cxd4 {[%emt 0:10:42] 6...cxd4 is better than 6...Nc6.} 7. exd4 {[%emt 0:02:43]} Bb4+ {[%emt 0:00:10]} (7... Nc6 {simplifies} 8. Nbd2 Be7 9. Be2 O-O) 8. Nbd2 {[%emt 0:00:05] The position is equal.} dxc4 {[%emt 0:05:18]} 9. bxc4 {[%emt 0:01:42]} Ne4 {[%emt 0:00:42] [#]} (9... b5 $11) 10. a3 $146 {[%emt 0:06:18]} ({Predecessor:} 10. Bd3 Nxd2 11. Nxd2 Qg5 12. Qe2 Bd7 13. O-O-O Ba4 14. Rde1 Qa5 15. d5 O-O 16. Ne4 exd5 17. Nf6+ Kh8 18. Qh5 Bd2+ 19. Kb1 h6 20. Qf5 {1-0 (20) Thybo,J (2437)-Rasmussen,K (2449) Skorping 2017}) 10... Ba5 {[%emt 0:00:17][%cal Ob7b5]} 11. Bd3 {[%emt 0:09:55]} Nxd2 {[%emt 0:08:28]} 12. Nxd2 {[%emt 0:00:20]} Qg5 {[%emt 0:00:42]} 13. Qe2 {[%emt 0:07:33]} (13. Qc2 {keeps more tension.} Nd7 14. Ke2 b5 15. Nf3) 13... Bd7 {[%emt 0:08:56]} (13... Qxg2 14. O-O-O $16) 14. h4 {[%emt 0:01:47]} Qh6 {[%emt 0:08:50]} (14... Qxg2 $2 15. Be4 $18) 15. Qe3 {[%emt 0:03:11]} Qxe3+ {[%emt 0:00:27]} 16. fxe3 {[%emt 0:00:03]} e5 {[%emt 0:00:59]} 17. O-O-O {[%emt 0:04:13][%cal Ba1d1,Bd1d2,Bd2f2,Bf2f3][%mdl 32]} (17. dxe5 O-O $11) (17. d5 $5 {[%cal Rb2e5]}) 17... Ba4 {[%emt 0:04:11]} 18. Bc2 {[%emt 0:01:04]} Bxc2 {[%emt 0:05:40]} 19. Kxc2 {[%emt 0:00:21]} Bxd2 {[%emt 0:00:59]} 20. Rxd2 {[%emt 0:00:08]} Nd7 {[%emt 0:00:05]} 21. Kb3 {[%emt 0:01:23]} (21. h5 $14) 21... O-O-O {[%emt 0:06:28]} (21... h5 $1 $11) 22. Rf2 {[%emt 0:02:01]} f6 {[%emt 0:01:17]} 23. Rh3 {[%emt 0:00:30]} exd4 {[%emt 0:05:44]} 24. exd4 {[%emt 0:00:05]} Rhe8 {[%emt 0:00:46]} 25. a4 {[%emt 0:00:51]} Re4 {[%emt 0:02:21]} 26. h5 {[%emt 0:00:48]} Rde8 {[%emt 0:00:53]} 27. Rff3 {[%emt 0:06:31]} Rg4 {[%emt 0:00:23]} 28. Rhg3 {[%emt 0:00:30]} Ree4 {[%emt 0:00:06]} 29. a5 {[%emt 0:02:22]} (29. Bc3 $5 {[%cal Rc4c5]}) 29... h6 {[%emt 0:00:34]} 30. Bc3 {[%emt 0:08:10]} Kd8 {[%emt 0:07:08]} 31. Rd3 {[%emt 0:02:49]} Nf8 {[%emt 0:13:58]} 32. Kb4 {[%emt 0:07:13]} Ne6 {[%emt 0:01:59][%cal Oe6f4]} 33. Rxg4 {[%emt 0:03:50]} Rxg4 $11 {[%emt 0:00:01][%mdl 4096] Endgame KRB-KRN} 34. g3 {[%emt 0:00:19] Prevents Nf4.} Rg5 $1 {[%emt 0:04:22]} 35. d5 {[%emt 0:02:32]} Nf8 {[%emt 0:00:09]} 36. Kc5 {[%emt 0:01:27] [#] And now Kd6 would win.} Kc7 {[%emt 0:00:28]} 37. Bd2 {[%emt 0:00:44]} Nd7+ {[%emt 0:00:10]} 38. Kd4 {[%emt 0:00:15]} Rxh5 {[%emt 0:00:58]} 39. Bf4+ {[%emt 0:00:04]} Ne5 $2 {[%emt 0:00:58][%mdl 8192] Black is on the road to losing.} (39... Kd8 $11) 40. Re3 $18 {[%emt 0:00:50] White is clearly winning.} Kd7 {[%emt 0:01:30]} 41. Bxe5 {[%emt 0:01:04]} fxe5+ {[%emt 0:00:00]} 42. Rxe5 {[%emt 0:00:10] KR-KR} Rh3 {[%emt 0:00:35]} 43. Re3 {[%emt 0:02:35]} h5 {[%emt 0:00:42]} (43... Rh5 $142 44. Kc5 Rg5) 44. Kc5 {[%emt 0:00:38] Strongly threatening d6.} h4 {[%emt 0:00:26] [#]} 45. Re4 $1 {[%emt 0:00:05]} (45. Rb3 Kc8 $11) 45... Rxg3 {[%emt 0:00:49]} 46. Rxh4 {[%emt 0:00:04]} Rg6 {[%emt 0:00:58]} 47. Rh8 {[%emt 0:00:32]} Rf6 {[%emt 0:00:48] Prevents Rf8.} 48. Rg8 {[%emt 0:00:06]} (48. Rb8 $142 Kc7 49. Re8) 48... Rf7 {[%emt 0:00:18]} 49. Kb6 {[%emt 0:00:35]} Kd6 {[%emt 0:00:15]} 50. Re8 {[%emt 0:00:27]} Rf4 {[%emt 0:00:41]} 51. Rd8+ {[%emt 0:01:34]} ({Less strong is} 51. Kxb7 Rxc4 52. Rd8+ (52. Kxa6 Kxd5 53. Rg8 Rg4 $16) 52... Ke5 $16) 51... Ke5 {[%emt 0:00:34]} 52. Kc5 {[%emt 0:00:19]} ({Weaker is} 52. Kxb7 Rxc4 53. d6 (53. Kxa6 Rb4 $16) 53... g5 $16) 52... Rf7 {[%emt 0:00:41]} 53. Re8+ {[%emt 0:00:09]} Kf5 {[%emt 0:00:25]} 54. d6 {[%emt 0:00:23]} Kf6 {[%emt 0:00:39]} 55. Kb6 {[%emt 0:02:33]} g5 {[%emt 0:00:22]} 56. c5 {[%emt 0:00:24]} Rg7 {[%emt 0:00:35]} 57. c6 {[%emt 0:00:30]} bxc6 {[%emt 0:00:17]} 58. Kxc6 {[%emt 0:03:16] Weighted Error Value: White=0.09 (flawless) /Black=0.27 (precise)} 1-0